bitfinex/quotes_ETHUSD_20240729
["timestamp","ask_amount","ask_price","bid_price","bid_amount"]
[1722281448994,6.74076867,3317.2,3316.8,3.01486]
[1722281449260,6.74076867,3317.2,3317.1,3.01468]
[1722281449556,3.01419,3317.7,3317.1,3.01468]
[1722281449739,0.301419,3317.6,3316.9,3.01479]
[1722281449947,0.301419,3317.6,3316.8,3.01491]
[1722281450286,3.0144,3317.5,3316.8,3.01491]
[1722281451957,3.01441,3317.4,3316.7,3.01497]
[1722281452163,2.3528,3317.2,3316.7,3.01497]
[1722281455763,5.36741,3317.2,3316.5,3.01522]
[1722281456166,3.01468,3317.1,3316.3,3.01534]
[1722281456366,3.01468,3317.1,3316.4,3.01526]
[1722281456594,3.01468,3317.1,3316.3,3.01534]
[1722281456595,4.52696087,3317.1,3316.5,3.0152]
[1722281456899,1.51228087,3317.1,3316.5,3.0152]
[1722281457972,1.51228087,3317.1,3315.9,5.30016]
[1722281457973,2.3528,3317.2,3316.7,3.01497]
[1722281461701,2.3528,3317.2,3316.6,3.01513]
[1722281461702,5.36741,3317.2,3316.6,3.01513]
[1722281462992,2.3528,3317.2,3316.6,3.01513]
[1722281463197,3.86505087,3317.2,3316.6,3.01513]
[1722281463693,3.01477,3317.0,3316.2,3.01546]
[1722281463900,3.01511,3316.7,3316.0,3.01561]
[1722281464127,3.01511,3316.7,3316.1,3.01558]
[1722281465413,3.01514,3316.6,3316.0,3.01567]
[1722281465743,1.101257,3316.7,3316.1,3.01556]
[1722281465954,5.32349,3316.9,3316.1,3.01556]
[1722281465955,3.01498,3316.8,3316.1,3.01556]
[1722281467142,3.01505,3316.7,3316.1,3.01556]
[1722281467656,3.01513,3316.6,3315.9,3.0157]
[1722281468951,3.01513,3316.6,3316.0,3.01565]
[1722281469336,3.01503,3316.8,3316.0,3.01565]
[1722281469648,9.75534867,3317.3,3316.5,3.01515]
[1722281469957,9.91908498,3317.3,3316.2,0.0602975]
[1722281470159,9.10146867,3317.3,3316.8,3.01488]
[1722281470313,9.10146867,3317.3,3316.9,3.01485]
[1722281470644,9.10146867,3317.3,3316.7,3.01497]
[1722281471651,12.11597867,3317.3,3316.7,3.01497]
[1722281471864,14.02070441,3317.3,3316.7,3.01497]
[1722281472166,4.26542574,3317.3,3316.4,3.01528]
[1722281472371,4.26542574,3317.3,3316.5,3.0152]
[1722281472372,3.01468,3317.1,3316.5,3.0152]
[1722281472742,5.37521,3317.3,3316.5,3.0152]
[1722281472743,2.3607,3317.3,3316.6,3.01512]
[1722281473055,2.3607,3317.3,3316.8,3.01491]
[1722281473273,2.3607,3317.3,3316.8,6.02977]
[1722281473582,2.3607,3317.3,3316.8,3.01486]
[1722281474066,2.3607,3317.3,3316.8,3.01489]
[1722281474251,3.01459,3317.2,3316.6,3.01509]
[1722281474453,3.01459,3317.2,3316.4,3.01527]
[1722281474454,3.01472,3317.1,3316.4,3.01527]
[1722281474765,2.898204,3317.3,3316.4,3.01527]
[1722281474970,0.5912644,3317.2,3316.4,3.01527]
[1722281475476,3.6059144,3317.2,3316.4,3.01527]
[1722281476032,3.6059144,3317.2,3315.9,6.0157]
[1722281476033,2.3607,3317.3,3316.7,3.01503]
[1722281476232,2.3607,3317.3,3316.8,3.01494]
[1722281476467,2.3607,3317.3,3316.8,3.01486]
[1722281476973,2.3607,3317.3,3316.2,3.01546]
[1722281476974,6.74076867,3317.6,3317.4,3.01433]
[1722281477171,2.2702,3317.8,3316.9,0.0602916]
[1722281477172,2.2702,3317.8,3317.0,3.01469]
[1722281477328,6.74076867,3318.2,3317.1,0.06028168]
[1722281477329,2.2702,3318.1,3317.1,0.06028168]
[1722281477529,2.2702,3318.1,3317.5,3.01424]
[1722281478390,2.2702,3318.1,3317.3,3.01443]
[1722281478543,3.01386,3318.0,3317.3,3.01443]
[1722281478934,3.01386,3318.0,3317.1,3.01467]
[1722281478935,3.01395,3317.9,3317.1,3.01467]
[1722281479531,3.01386,3318.0,3317.2,3.01458]
[1722281479933,3.01386,3318.0,3316.2,2.674]
[1722281479934,2.4163,3317.7,3317.0,3.01477]
[1722281480138,0.24163,3317.6,3317.0,3.01477]
[1722281480373,5.43045,3317.7,3316.8,3.01495]
[1722281480564,5.43045,3317.7,3316.6,3.0151]
[1722281480565,3.01445,3317.4,3316.7,3.01498]
[1722281481467,3.0145,3317.3,3316.5,3.01515]
[1722281481667,3.01438,3317.5,3316.5,3.01515]
[1722281481850,3.01438,3317.5,3316.7,3.01499]
[1722281482060,3.01441,3317.4,3316.7,3.01499]
[1722281482453,3.01426,3317.6,3316.8,3.01494]
[1722281482651,3.01441,3317.4,3316.6,3.01513]
[1722281482852,3.0146,3317.2,3316.5,3.01521]
[1722281483060,2.438,3317.1,3316.6,3.01506]
[1722281487192,2.438,3317.1,3316.8,3.01495]
[1722281487491,3.01433,3317.5,3316.8,3.01495]
[1722281487492,2.3843,3317.4,3316.8,3.01495]
[1722281488505,3.01461,3317.2,3316.6,3.01511]
[1722281489057,3.01461,3317.2,3316.3,3.0]
[1722281489058,3.01461,3317.2,3316.5,3.01522]
[1722281489262,5.43589,3317.1,3316.5,3.01522]
[1722281489768,3.01486,3316.9,3316.2,3.01543]
[1722281489967,3.859935,3316.9,3316.2,3.01543]
[1722281490372,3.01486,3316.9,3316.2,3.01543]
[1722281491958,3.01486,3316.9,3316.3,3.01536]
[1722281492364,5.43589,3317.1,3316.4,3.01531]
[1722281493216,3.01477,3317.0,3316.3,3.01536]
[1722281494228,3.01477,3317.0,3316.4,3.01531]
[1722281494429,2.3901,3316.7,3316.0,3.01568]
[1722281494637,5.4052,3316.7,3316.0,3.01568]
[1722281494929,5.4052,3316.7,3315.9,3.01573]
[1722281495311,3.01522,3316.5,3315.7,3.01593]
[1722281495837,3.01531,3316.4,3315.7,3.01593]
[1722281496040,2.3221,3316.3,3315.7,3.01593]
[1722281496333,3.01556,3316.2,3315.4,3.01616]
[1722281496633,2.3221,3316.3,3315.4,3.01616]
[1722281496634,3.549366,3316.1,3315.4,3.01616]
[1722281497136,0.533766,3316.1,3315.2,3.0164]
[1722281497442,3.01577,3315.9,3315.2,3.0164]
[1722281500841,3.01595,3315.7,3315.0,3.01657]
[1722281501144,3.01621,3315.5,3314.8,3.01676]
[1722281502061,2.2748,3315.6,3315.0,3.01657]
[1722281502663,5.2909,3315.6,3314.8,3.01676]
[1722281503025,5.2909,3315.6,3314.9,3.01664]
[1722281504222,5.2909,3315.6,3314.8,3.01676]
[1722281504223,2.2748,3315.6,3315.0,3.01658]
[1722281506533,5.29085,3315.6,3315.0,3.01658]
[1722281506770,5.29085,3315.6,3314.9,3.01667]
[1722281506982,2.2748,3315.6,3314.4,2.4339]
[1722281507136,2.2748,3315.6,3315.3,3.01627]
[1722281507641,2.2748,3315.6,3315.1,3.01643]
[1722281507976,2.2748,3315.6,3314.7,3.01682]
[1722281508178,2.2748,3315.6,3315.0,3.01653]
[1722281509398,5.2909,3315.6,3314.4,5.45099]
[1722281509583,3.01623,3315.4,3314.7,3.01678]
[1722281509767,3.01623,3315.4,3314.8,3.01676]
[1722281510081,3.01623,3315.4,3314.4,3.01707]
[1722281510082,2.4092,3315.0,3314.4,3.01707]
[1722281510287,5.968377,3315.0,3314.4,3.01707]
[1722281510501,5.4258,3315.0,3314.4,3.01707]
[1722281510801,3.01669,3314.9,3314.2,3.01724]
[1722281511406,3.01669,3314.9,3314.3,3.01722]
[1722281511627,2.2738,3314.8,3314.1,3.01734]
[1722281511783,3.01686,3314.7,3314.1,3.01734]
[1722281513210,2.2738,3314.8,3314.1,3.01734]
[1722281513810,2.2738,3314.8,3314.2,3.01731]
[1722281514108,2.2738,3314.8,3313.4,3.0]
[1722281514109,2.2738,3314.8,3314.4,3.01711]
[1722281514326,6.74076867,3315.2,3314.6,3.01695]
[1722281514605,6.74076867,3315.2,3314.7,3.01679]
[1722281514816,6.74076867,3315.2,3314.9,3.01662]
[1722281514984,2.2794,3315.3,3315.0,3.01657]
[1722281515182,12.17,3315.6,3314.9,3.01662]
[1722281515709,15.18606,3315.6,3315.0,3.01658]
[1722281515912,12.17,3315.6,3315.1,3.01647]
[1722281516418,12.17,3315.6,3314.9,3.01661]
[1722281516622,12.17,3315.6,3314.8,0.06032803]
[1722281516852,3.01632,3315.3,3314.7,3.01682]
[1722281519132,3.01613,3315.5,3314.7,3.01682]
[1722281519333,15.18604,3315.6,3314.9,3.01662]
[1722281519649,3.01604,3315.6,3314.9,3.01662]
[1722281519835,3.01615,3315.5,3314.7,3.01682]
[1722281520335,3.01622,3315.4,3314.8,3.01676]
[1722281520645,3.01622,3315.4,3314.6,0.0603328]
[1722281520646,9.02016867,3315.7,3314.9,3.01666]
[1722281520950,9.02016867,3315.7,3315.0,0.06032642]
[1722281521150,9.02016867,3315.7,3315.2,3.01635]
[1722281521302,2.2794,3315.7,3314.5,2.3589]
[1722281521505,6.74076867,3316.0,3315.4,3.01616]
[1722281521826,1.21507887,3315.9,3315.4,3.01616]
[1722281522013,2.3944,3316.1,3315.4,3.01616]
[1722281522216,2.3944,3316.1,3315.6,3.01598]
[1722281522420,18.91076867,3316.3,3315.6,3.01598]
[1722281522804,21.92617867,3316.3,3315.6,3.01598]
[1722281523113,24.66740854,3316.3,3315.6,3.01598]
[1722281523712,6.74076867,3316.3,3315.9,3.01575]
[1722281524043,6.74076867,3316.3,3315.8,3.01579]
[1722281524259,6.74076867,3316.3,3316.1,3.01558]
[1722281524470,6.74076867,3316.9,3316.4,3.01525]
[1722281524651,6.74076867,3316.9,3316.2,3.01543]
[1722281524975,6.74076867,3316.9,3315.4,2.2632]
[1722281524976,12.31169392,3316.9,3316.0,3.01564]
[1722281525125,3.01504,3316.7,3316.0,3.01564]
[1722281525329,3.01522,3316.5,3315.7,3.01587]
[1722281525756,3.01504,3316.7,3315.9,3.01576]
[1722281526565,9.29675392,3316.9,3316.0,0.06031009]
[1722281526768,9.29675392,3316.9,3315.5,3.01608]
[1722281526769,2.65574539,3316.8,3316.1,3.01551]
[1722281526920,5.67070539,3316.8,3316.1,3.01553]
[1722281527120,5.67070539,3316.8,3316.0,3.01567]
[1722281527121,3.01514,3316.6,3316.0,3.01567]
[1722281527326,5.67075539,3316.8,3316.0,3.01567]
[1722281527522,4.55768841,3316.7,3316.0,3.01567]
[1722281527762,3.01513,3316.6,3316.0,3.01567]
[1722281529067,1.54263841,3316.7,3316.2,3.01545]
[1722281529269,6.74076867,3316.9,3316.3,3.01533]
[1722281529469,6.74076867,3316.9,3316.2,3.01545]
[1722281529671,6.74076867,3316.9,3316.6,3.01506]
[1722281529970,6.19295,3318.0,3315.5,5.6901]
[1722281529971,9.11856867,3317.4,3316.7,3.01498]
[1722281530178,9.11856867,3317.4,3316.9,3.01485]
[1722281530361,0.91185687,3317.3,3317.0,3.01476]
[1722281530529,9.11856867,3317.4,3317.0,3.01476]
[1722281530852,9.11856867,3317.4,3316.8,3.01488]
[1722281531169,9.11856867,3317.4,3317.1,3.01462]
[1722281531170,6.74076867,3317.4,3317.1,3.01462]
[1722281531371,6.74076867,3317.4,3317.3,3.01449]
[1722281531526,6.74076867,3317.4,3317.1,3.01468]
[1722281534207,10.42931554,3317.4,3316.7,3.01503]
[1722281534358,10.42931554,3317.4,3316.5,3.01516]
[1722281534559,3.01451,3317.3,3316.5,3.01516]
[1722281534755,3.01451,3317.3,3316.6,3.01512]
[1722281534971,3.01474,3317.1,3316.3,3.01537]
[1722281535216,3.01474,3317.1,3315.8,2.484]
[1722281535217,5.37204,3317.1,3316.4,3.01531]
[1722281535589,2.3573,3317.1,3316.5,3.01521]
[1722281535776,2.3573,3317.1,3316.6,3.01512]
[1722281537157,7.41484554,3317.4,3316.2,3.01542]
[1722281537358,6.74076867,3317.4,3316.3,0.06029765]
[1722281537659,6.74076867,3317.4,3317.1,3.01466]
[1722281538899,6.74076867,3317.4,3316.6,3.0151]
[1722281539100,6.74076867,3317.4,3316.0,1.5]
[1722281539101,9.21026867,3317.7,3317.0,3.01475]
[1722281539307,9.21026867,3317.7,3317.3,3.01448]
[1722281539516,6.74076867,3317.7,3317.4,3.01438]
[1722281539705,21.38026867,3318.2,3317.5,3.01431]
[1722281539904,21.38026867,3318.2,3317.7,3.01413]
[1722281541407,21.38026867,3318.2,3317.8,3.01404]
[1722281541722,18.91076867,3318.2,3317.8,3.01404]
[1722281542380,2.2559,3318.6,3318.0,3.01384]
[1722281543327,3.0135,3318.4,3317.5,3.01427]
[1722281544716,3.0135,3318.4,3317.8,3.01404]
[1722281546187,3.0135,3318.4,3317.6,3.01416]
[1722281546188,3.0136,3318.3,3317.6,3.01416]
[1722281546383,3.01367,3318.3,3317.5,3.01426]
[1722281546614,3.01396,3317.9,3317.1,3.01465]
[1722281546812,3.01405,3317.8,3316.9,3.01478]
[1722281547026,3.01405,3317.8,3317.0,3.01476]
[1722281547027,0.301405,3317.7,3317.0,3.01476]
[1722281547233,3.315535,3317.7,3317.0,3.01476]
[1722281547743,3.315535,3317.7,3316.9,3.0148]
[1722281548243,3.315535,3317.7,3317.0,3.01476]
[1722281548441,0.301405,3317.7,3317.1,3.01466]
[1722281548614,3.01396,3317.9,3316.6,3.01507]
[1722281548812,3.01386,3318.0,3317.3,3.01443]
[1722281549557,6.74076867,3318.1,3317.4,3.01433]
[1722281549709,6.74076867,3318.1,3317.5,3.0143]
[1722281549911,11.00128954,3318.1,3317.3,3.01443]
[1722281550865,11.00128954,3318.1,3317.4,3.0144]
[1722281551728,3.01386,3318.0,3317.4,3.0144]
[1722281552064,3.01395,3317.9,3317.2,3.01455]
[1722281552245,3.01405,3317.8,3317.2,3.01455]
[1722281552558,3.01405,3317.8,3317.0,3.01475]
[1722281552559,3.01415,3317.7,3317.0,3.01475]
[1722281553133,3.01448,3317.4,3316.6,3.0151]
[1722281553336,2.4795,3317.6,3316.6,3.0151]
[1722281553337,3.0145,3317.3,3316.6,3.0151]
[1722281553536,3.0145,3317.3,3316.7,3.01504]
[1722281553872,3.01436,3317.5,3316.6,3.0151]
[1722281554074,3.01436,3317.5,3316.7,3.01498]
[1722281554238,3.01436,3317.5,3316.6,3.0151]
[1722281554239,0.850801,3317.5,3316.6,3.0151]
[1722281554466,3.0146,3317.2,3316.6,3.0151]
[1722281556672,3.0146,3317.2,3316.4,3.0153]
[1722281556875,3.01474,3317.1,3316.4,3.0153]
[1722281557404,3.01474,3317.1,3316.5,3.01521]
[1722281558780,3.01474,3317.1,3316.0,3.0]
[1722281558781,3.01474,3317.1,3316.0,6.01566]
[1722281559107,2.3347,3317.0,3316.0,6.01566]
[1722281559433,3.0151,3316.7,3315.8,3.01582]
[1722281559584,3.0151,3316.7,3315.6,3.01601]
[1722281559920,3.01528,3316.5,3315.8,3.0158]
[1722281560068,3.01528,3316.5,3315.9,3.01576]
[1722281560275,3.01528,3316.5,3315.8,3.0158]
[1722281560897,3.01533,3316.4,3315.8,3.0158]
[1722281561098,3.01533,3316.4,3315.6,6.032]
[1722281561099,5.43103,3316.4,3315.6,6.032]
[1722281561299,2.4157,3316.4,3315.6,3.01597]
[1722281561484,3.01542,3316.3,3315.6,3.01597]
[1722281562402,3.01559,3316.1,3315.2,3.01638]
[1722281562841,3.01577,3315.9,3315.2,3.01638]
[1722281563059,6.03124,3316.1,3315.3,3.01631]
[1722281563222,3.01568,3316.0,3315.3,3.01631]
[1722281564252,9.75632867,3316.2,3315.4,3.01622]
[1722281564548,3.01559,3316.1,3315.4,3.01622]
[1722281565444,3.01583,3315.9,3315.2,3.01638]
[1722281566220,3.01589,3315.8,3315.0,3.01655]
[1722281566427,3.01583,3315.9,3315.0,3.01655]
[1722281567236,3.01583,3315.9,3315.1,3.01646]
[1722281567444,6.74076867,3316.2,3315.0,3.01652]
[1722281567764,3.01596,3315.7,3315.1,3.01644]
[1722281568053,5.42916,3315.7,3315.0,3.01657]
[1722281569896,3.01606,3315.6,3315.0,3.01657]
[1722281571187,3.01606,3315.6,3314.8,3.01675]
[1722281571188,3.01614,3315.5,3314.8,3.01675]
[1722281571696,3.01614,3315.5,3314.9,3.01667]
[1722281571980,0.542926,3315.6,3314.9,3.01667]
[1722281572171,3.01606,3315.6,3314.9,3.01667]
[1722281572751,3.01606,3315.6,3315.0,3.01656]
[1722281572953,2.4132,3315.7,3315.0,3.01656]
[1722281573190,2.4132,3315.7,3315.2,3.01634]
[1722281573766,2.4132,3315.7,3315.0,3.01652]
[1722281574149,2.4132,3315.7,3315.1,3.01649]
[1722281574378,2.4132,3315.7,3314.4,3.01709]
[1722281574379,2.4641,3316.0,3315.2,0.06032446]
[1722281574546,2.4641,3316.0,3315.6,3.016]
[1722281574746,2.4641,3316.0,3315.4,3.01616]
[1722281574747,5.47978,3316.0,3315.4,3.01616]
[1722281575368,2.4641,3316.0,3315.5,3.01612]
[1722281576654,2.4641,3316.0,3315.3,3.01625]
[1722281577077,2.4641,3316.0,3315.4,3.0162]
[1722281577393,2.4641,3316.0,3315.6,3.01601]
[1722281577902,2.4641,3316.0,3315.7,3.01593]
[1722281578114,6.74076867,3316.2,3316.0,3.01562]
[1722281578258,2.4494,3316.4,3316.0,3.01562]
[1722281578659,2.4494,3316.4,3316.1,3.01559]
[1722281578856,2.4494,3316.4,3315.9,3.01576]
[1722281579168,2.4494,3316.4,3315.8,0.0603097]
[1722281579487,2.4494,3316.4,3315.7,3.01594]
[1722281579488,5.46479,3316.4,3315.7,3.01594]
[1722281580671,2.4494,3316.4,3315.8,3.01579]
[1722281581469,2.4494,3316.4,3315.9,3.01576]
[1722281582488,9.75584867,3316.7,3314.2,0.62940306]
[1722281582489,6.74076867,3316.7,3316.0,0.06030972]
[1722281582674,6.74076867,3316.7,3316.3,3.01535]
[1722281582867,6.74076867,3316.7,3316.4,3.0153]
[1722281583877,6.74076867,3316.7,3316.3,6.03068]
[1722281584093,6.74076867,3316.7,3316.3,3.01533]
[1722281584291,6.74076867,3316.7,3316.5,3.01517]
[1722281584813,6.74076867,3316.7,3315.7,2.34]
[1722281585138,6.74076867,3316.7,3315.9,3.01574]
[1722281585350,6.74076867,3316.7,3316.3,3.01535]
[1722281585647,6.74076867,3316.7,3316.0,3.01564]
[1722281585648,7.64526554,3316.7,3316.0,3.01564]
[1722281585827,10.66031554,3316.7,3316.0,6.03125]
[1722281586134,10.66031554,3316.7,3316.1,3.01559]
[1722281587203,7.64526554,3316.7,3316.1,3.01559]
[1722281588025,0.90449687,3316.7,3316.2,3.01549]
[1722281588199,2.3042,3316.9,3316.2,3.07579376]
[1722281588598,3.01496,3316.8,3316.2,3.01549]
[1722281589133,3.01496,3316.8,3316.0,3.01561]
[1722281589345,3.01496,3316.8,3316.1,3.01558]
[1722281591199,3.01496,3316.8,3316.1,6.03103]
[1722281591442,2.3042,3316.9,3316.2,0.0603038]
[1722281591747,9.75556867,3317.0,3316.3,2.5326038]
[1722281591748,6.74076867,3317.0,3316.3,2.5326038]
[1722281591965,6.74076867,3317.0,3316.9,3.01486]
[1722281592101,2.2588,3317.5,3316.8,3.01491]
[1722281592102,2.2588,3317.5,3317.0,3.01472]
[1722281592436,2.2588,3317.5,3317.1,3.01467]
[1722281592840,2.2588,3317.5,3316.9,3.01479]
[1722281593043,5.27311,3317.5,3316.9,3.01484]
[1722281594241,3.01467,3317.2,3316.5,3.01522]
[1722281594599,4.97860187,3317.5,3316.2,3.01541]
[1722281594600,5.4338,3317.1,3316.2,3.01541]
[1722281594824,3.01489,3316.9,3316.2,3.01544]
[1722281595164,3.01489,3316.9,3316.0,3.01564]
[1722281595165,2.4191,3317.1,3316.0,3.01561]
[1722281595303,3.01515,3316.6,3316.0,3.01561]
[1722281595508,3.01503,3316.8,3316.0,3.01561]
[1722281595936,3.01507,3316.7,3316.0,3.01561]
[1722281596248,2.4301,3316.4,3315.8,3.01584]
[1722281596415,5.44547,3316.4,3315.8,3.01584]
[1722281597055,2.4301,3316.4,3315.8,3.01584]
[1722281597285,2.40400972,3316.4,3315.8,3.01584]
[1722281597628,5.41931972,3316.4,3315.8,3.01584]
[1722281597958,3.01546,3316.3,3315.6,3.01597]
[1722281598706,3.0155,3316.2,3315.6,3.01597]
[1722281600264,5.41931972,3316.4,3315.7,3.01595]
[1722281600756,3.01542,3316.3,3315.4,3.01619]
[1722281601513,3.01542,3316.3,3315.6,3.01601]
[1722281601833,2.40400972,3316.4,3315.9,3.01576]
[1722281602448,2.40400972,3316.4,3316.0,3.01562]
[1722281602860,6.74076867,3316.7,3316.1,3.01556]
[1722281603247,9.75580867,3316.7,3316.1,3.01556]
[1722281603474,3.01516,3316.6,3315.9,3.01573]
[1722281603683,3.01523,3316.5,3315.6,3.01601]
[1722281604180,11.26624554,3316.7,3315.8,3.01577]
[1722281604340,3.01514,3316.6,3315.9,3.0157]
[1722281605077,3.01532,3316.4,3315.6,3.01602]
[1722281605234,2.4599,3316.3,3315.7,3.01595]
[1722281605431,2.4599,3316.3,3315.6,3.01602]
[1722281605939,5.47532,3316.3,3315.6,3.01602]
[1722281606367,5.47532,3316.3,3315.7,3.01593]
[1722281606929,5.47532,3316.3,3315.6,3.01604]
[1722281607226,3.0156,3316.1,3315.4,3.01619]
[1722281607561,3.01568,3316.0,3315.2,3.01637]
[1722281607729,3.01568,3316.0,3315.3,3.01631]
[1722281610651,3.01577,3315.9,3315.3,3.01631]
[1722281611599,3.01565,3316.1,3315.4,3.01619]
[1722281613596,6.324414,3316.3,3315.5,3.01612]
[1722281613771,3.01551,3316.2,3315.5,3.01612]
[1722281614166,3.01559,3316.1,3315.5,3.01612]
[1722281614781,6.324424,3316.3,3315.5,3.01612]
[1722281614956,3.01558,3316.2,3315.5,3.01612]
[1722281615291,3.01558,3316.2,3315.3,3.01624]
[1722281615601,3.01575,3316.0,3315.3,3.01624]
[1722281615956,3.01575,3316.0,3315.3,6.03247]
[1722281616157,3.01575,3316.0,3315.4,3.01622]
[1722281616359,3.6480334,3316.2,3315.5,3.01613]
[1722281616689,3.6480334,3316.2,3315.4,3.01621]
[1722281616690,3.01559,3316.1,3315.4,3.01621]
[1722281616858,3.01569,3316.0,3315.2,3.01633]
[1722281617064,3.01577,3315.9,3315.2,3.01633]
[1722281617401,3.01577,3315.9,3315.2,3.01632]
[1722281617775,3.01577,3315.9,3315.3,3.01631]
[1722281617970,3.01559,3316.1,3315.3,3.01631]
[1722281618158,3.01576,3316.0,3315.3,3.01631]
[1722281618506,3.01559,3316.1,3315.4,3.01617]
[1722281618918,3.01559,3316.1,3315.5,3.01611]
[1722281619519,6.74076867,3316.2,3314.9,3.01662]
[1722281619686,6.74076867,3316.2,3315.8,3.01583]
[1722281619878,2.4599,3316.3,3315.8,3.01583]
[1722281620507,2.4599,3316.3,3315.6,3.01604]
[1722281620508,5.4753,3316.3,3315.6,3.01604]
[1722281620929,5.4753,3316.3,3315.7,3.01589]
[1722281621222,2.4599,3316.3,3315.1,3.01646]
[1722281621424,9.75593867,3316.6,3316.2,3.01541]
[1722281621425,9.15046867,3316.6,3316.2,3.01541]
[1722281621722,12.17,3317.1,3316.3,0.06030793]
[1722281621723,6.74076867,3317.0,3316.3,0.06030793]
[1722281622028,6.74076867,3317.0,3316.7,3.01504]
[1722281622379,6.74076867,3317.0,3316.8,3.01494]
[1722281622891,6.74076867,3317.0,3316.9,3.01486]
[1722281623084,2.4097,3317.5,3317.0,3.01473]
[1722281624322,2.4097,3317.5,3316.8,0.0602903]
[1722281624494,2.4097,3317.5,3316.7,3.01501]
[1722281624697,5.42408,3317.5,3316.7,3.01501]
[1722281624892,8.15893887,3317.5,3316.5,3.01522]
[1722281625218,3.01462,3317.2,3316.5,3.01522]
[1722281626938,5.14459887,3317.5,3316.1,3.01557]
[1722281627158,5.14459887,3317.5,3315.9,8.31444]
[1722281627159,3.01511,3316.7,3316.0,3.01567]
[1722281627436,3.01487,3316.9,3316.0,3.01566]
[1722281627437,3.01501,3316.8,3316.0,3.01566]
[1722281628616,3.01505,3316.7,3316.0,3.01566]
[1722281628838,3.01513,3316.6,3315.8,3.01579]
[1722281629853,3.01513,3316.6,3315.9,3.01575]
[1722281630414,3.01524,3316.5,3315.8,3.01586]
[1722281630627,3.01522,3316.5,3315.8,3.01586]
[1722281630811,3.01522,3316.5,3315.9,3.01576]
[1722281631235,2.3494,3316.7,3315.5,2.2987]
[1722281631236,3.01535,3316.4,3315.7,3.01588]
[1722281632041,6.03034,3316.6,3315.8,3.01585]
[1722281632255,3.01514,3316.6,3315.6,3.01603]
[1722281632427,3.01514,3316.6,3315.7,3.01595]
[1722281632614,2.3494,3316.7,3316.1,3.01555]
[1722281632812,3.68899687,3316.9,3316.2,3.01548]
[1722281632813,3.01492,3316.9,3316.2,3.01548]
[1722281633014,6.74076867,3317.0,3316.4,3.01531]
[1722281633635,6.74076867,3317.0,3316.5,3.07552126]
[1722281633835,6.74076867,3317.0,3316.7,3.01504]
[1722281634169,21.38726867,3317.5,3316.7,3.01504]
[1722281634324,3.01451,3317.3,3316.5,6.03037]
[1722281634523,3.01451,3317.3,3316.5,3.01515]
[1722281634764,2.70755187,3317.4,3316.5,3.01515]
[1722281634765,3.01459,3317.2,3316.5,3.01515]
[1722281634964,5.72196187,3317.4,3316.5,3.01515]
[1722281634965,3.01468,3317.1,3316.5,3.01515]
[1722281635963,3.0146,3317.2,3316.5,3.01515]
[1722281636866,5.72542305,3317.3,3316.6,3.01513]
[1722281637177,21.38726867,3317.5,3316.8,3.01494]
[1722281637330,21.38726867,3317.5,3316.7,3.07527781]
[1722281637331,21.92508867,3317.5,3316.7,3.07527781]
[1722281637532,3.01441,3317.4,3316.7,3.07527781]
[1722281637950,3.01441,3317.4,3316.8,3.01495]
[1722281638325,18.91076867,3317.5,3316.8,3.01495]
[1722281638570,6.74076867,3317.5,3316.9,3.07514408]
[1722281638965,6.74076867,3317.5,3317.0,3.01475]
[1722281639749,6.74076867,3317.5,3316.9,0.06029108]
[1722281640079,9.75509867,3317.5,3316.7,3.01503]
[1722281640735,3.01441,3317.4,3316.8,0.06029113]
[1722281640934,3.01441,3317.4,3316.6,3.01506]
[1722281641160,3.01451,3317.3,3316.6,3.01506]
[1722281641388,3.01451,3317.3,3316.7,3.01504]
[1722281642071,9.75509867,3317.5,3316.8,0.06029117]
[1722281642270,3.01441,3317.4,3316.7,3.01497]
[1722281642468,9.75509867,3317.5,3316.7,3.01497]
[1722281643483,9.75509867,3317.5,3316.8,3.01494]
[1722281643682,9.75509867,3317.5,3316.8,3.07523116]
[1722281644260,9.75509867,3317.5,3316.8,3.01494]
[1722281644462,3.01433,3317.5,3316.8,3.01494]
[1722281644760,3.01441,3317.4,3316.8,3.01494]
[1722281645001,3.0145,3317.3,3316.6,3.01509]
[1722281645204,3.01463,3317.2,3316.6,3.01509]
[1722281645861,3.01463,3317.2,3316.3,5.50077]
[1722281645862,3.01483,3317.0,3316.3,5.50077]
[1722281646061,3.01463,3317.2,3316.1,3.01552]
[1722281646062,3.01488,3316.9,3316.1,3.01552]
[1722281646262,6.02982,3316.9,3316.2,3.01543]
[1722281646607,3.0155,3316.2,3315.6,3.01604]
[1722281646996,5.33718,3316.4,3315.7,3.01593]
[1722281647570,2.3857,3316.8,3316.2,3.01549]
[1722281647767,3.01462,3317.2,3316.2,3.01549]
[1722281647768,3.01486,3316.9,3316.2,3.01549]
[1722281647978,3.36124487,3317.2,3316.0,3.07598635]
[1722281648183,3.0152,3316.6,3316.0,3.07598635]
[1722281648380,3.01522,3316.5,3316.0,0.06030635]
[1722281648597,3.01522,3316.5,3315.9,2.3457]
[1722281648799,3.01522,3316.5,3315.9,5.36147]
[1722281648998,3.01499,3316.8,3315.9,5.36147]
[1722281649322,3.01514,3316.6,3315.9,5.36147]
[1722281650195,3.01514,3316.6,3316.0,0.06030733]
[1722281650410,3.01499,3316.8,3316.0,3.07597733]
[1722281650612,3.01504,3316.7,3316.0,3.07597733]
[1722281650811,3.01504,3316.7,3316.1,3.01559]
[1722281651407,3.01493,3316.9,3316.2,3.01548]
[1722281652007,6.37584487,3317.2,3316.2,3.01548]
[1722281652400,3.01468,3317.1,3316.4,3.01531]
[1722281653639,6.37584487,3317.2,3316.4,3.01531]
[1722281653640,5.4003,3317.2,3316.4,3.01531]